{"text_format":"1","workbook":"xlsx","n_sheets":3,"sheets":["Lista zaliha u skladištu","Lista izdvajanja za zalihe","Pronalaženje korpe"],"not_rendered":{"charts":0,"images":0,"macros":1,"external_links":0,"defined_names":8,"comments":0,"pivot_tables":0},"unopened":[],"bounds":{"document_bytes":16777216,"sheet_cells":100000,"rows_first":2000,"rows_last":500,"rows_between":2000,"halvings":0,"cell_chars":16384,"cell_head_chars":4096},"cells_cut":0,"cells_raw":0,"read":"whole","date_system":"1900"}

{"sheet":"Lista zaliha u skladištu","index":0,"n_rows":15,"n_cols":11,"rows_kept":15,"cut":false,"hidden":false,"merged":[]}
[null,"LISTA ZALIHA U SKLADIŠTU"]
[null,"UKUPNA VREDNOST ZALIHA:","STAVKE ZALIHA:","BROJ KORPE:","LISTA IZDVAJANJA ZA ZALIHE","PRONALAŽENJE KORPE"]
[null,{"$f":"SUM(Lista_zaliha[VREDNOST ZALIHA])","v":4649},{"$f":"COUNTA(Lista_zaliha[OPIS])","v":11},{"$f":"SUMPRODUCT((1/COUNTIF(Lista_zaliha[BROJ KORPE],Lista_zaliha[BROJ KORPE]&\"\")))","v":6}]
[null,"SKU","OPIS","BROJ KORPE","LOKACIJA","JEDINICA","KOL.","KOLIČINA ZA PONOVNO PORUČIVANJE","CENA","VREDNOST ZALIHA","PONOVNO PORUČIVANJE"]
[null,"SP7875","Stavka 1","T345",{"$f":"IFERROR(VLOOKUP(Lista_zaliha[[#This Row],[BROJ KORPE]],Pronalaženje_korpe[],3,FALSE),\"\")","v":"Red 2, slot 1"},"Svaka",20,10,30,{"$f":"Lista_zaliha[[#This Row],[KOL.]]*Lista_zaliha[[#This Row],[CENA]]","v":600},{"$f":"IFERROR(IF(Lista_zaliha[[#This Row],[KOL.]]<=Lista_zaliha[[#This Row],[KOLIČINA ZA PONOVNO PORUČIVANJE]],1,0),0)","v":0}]
[null,"TR87680","Stavka 2","T345",{"$f":"IFERROR(VLOOKUP(Lista_zaliha[[#This Row],[BROJ KORPE]],Pronalaženje_korpe[],3,FALSE),\"\")","v":"Red 2, slot 1"},"Svaka",30,15,40,{"$f":"Lista_zaliha[[#This Row],[KOL.]]*Lista_zaliha[[#This Row],[CENA]]","v":1200},{"$f":"IFERROR(IF(Lista_zaliha[[#This Row],[KOL.]]<=Lista_zaliha[[#This Row],[KOLIČINA ZA PONOVNO PORUČIVANJE]],1,0),0)","v":0}]
[null,"MK676554","Stavka 3","T5789",{"$f":"IFERROR(VLOOKUP(Lista_zaliha[[#This Row],[BROJ KORPE]],Pronalaženje_korpe[],3,FALSE),\"\")","v":"Red 1, slot 1"},"Svaka",10,5,5,{"$f":"Lista_zaliha[[#This Row],[KOL.]]*Lista_zaliha[[#This Row],[CENA]]","v":50},{"$f":"IFERROR(IF(Lista_zaliha[[#This Row],[KOL.]]<=Lista_zaliha[[#This Row],[KOLIČINA ZA PONOVNO PORUČIVANJE]],1,0),0)","v":0}]
[null,"YE98767","Stavka 4","T9876",{"$f":"IFERROR(VLOOKUP(Lista_zaliha[[#This Row],[BROJ KORPE]],Pronalaženje_korpe[],3,FALSE),\"\")","v":"Red 3, slot 2"},"Kutija (10 komada)",40,10,15,{"$f":"Lista_zaliha[[#This Row],[KOL.]]*Lista_zaliha[[#This Row],[CENA]]","v":600},{"$f":"IFERROR(IF(Lista_zaliha[[#This Row],[KOL.]]<=Lista_zaliha[[#This Row],[KOLIČINA ZA PONOVNO PORUČIVANJE]],1,0),0)","v":0}]
[null,"XR23423","Stavka 5","T098",{"$f":"IFERROR(VLOOKUP(Lista_zaliha[[#This Row],[BROJ KORPE]],Pronalaženje_korpe[],3,FALSE),\"\")","v":"Red 3, slot 1"},"Svaka",12,10,26,{"$f":"Lista_zaliha[[#This Row],[KOL.]]*Lista_zaliha[[#This Row],[CENA]]","v":312},{"$f":"IFERROR(IF(Lista_zaliha[[#This Row],[KOL.]]<=Lista_zaliha[[#This Row],[KOLIČINA ZA PONOVNO PORUČIVANJE]],1,0),0)","v":0}]
[null,"PW98762","Stavka 6","T345",{"$f":"IFERROR(VLOOKUP(Lista_zaliha[[#This Row],[BROJ KORPE]],Pronalaženje_korpe[],3,FALSE),\"\")","v":"Red 2, slot 1"},"Svaka",7,10,50,{"$f":"Lista_zaliha[[#This Row],[KOL.]]*Lista_zaliha[[#This Row],[CENA]]","v":350},{"$f":"IFERROR(IF(Lista_zaliha[[#This Row],[KOL.]]<=Lista_zaliha[[#This Row],[KOLIČINA ZA PONOVNO PORUČIVANJE]],1,0),0)","v":1}]
[null,"BM87684","Stavka 7","T349",{"$f":"IFERROR(VLOOKUP(Lista_zaliha[[#This Row],[BROJ KORPE]],Pronalaženje_korpe[],3,FALSE),\"\")","v":"Red 1, slot 2"},"Svaka",10,5,10,{"$f":"Lista_zaliha[[#This Row],[KOL.]]*Lista_zaliha[[#This Row],[CENA]]","v":100},{"$f":"IFERROR(IF(Lista_zaliha[[#This Row],[KOL.]]<=Lista_zaliha[[#This Row],[KOLIČINA ZA PONOVNO PORUČIVANJE]],1,0),0)","v":0}]
[null,"BH67655","Stavka 8","T5789",{"$f":"IFERROR(VLOOKUP(Lista_zaliha[[#This Row],[BROJ KORPE]],Pronalaženje_korpe[],3,FALSE),\"\")","v":"Red 1, slot 1"},"Svaka",19,10,3,{"$f":"Lista_zaliha[[#This Row],[KOL.]]*Lista_zaliha[[#This Row],[CENA]]","v":57},{"$f":"IFERROR(IF(Lista_zaliha[[#This Row],[KOL.]]<=Lista_zaliha[[#This Row],[KOLIČINA ZA PONOVNO PORUČIVANJE]],1,0),0)","v":0}]
[null,"WT98768","Stavka 9","T9875",{"$f":"IFERROR(VLOOKUP(Lista_zaliha[[#This Row],[BROJ KORPE]],Pronalaženje_korpe[],3,FALSE),\"\")","v":"Red 2, slot 2"},"Paket (5 komada)",20,30,14,{"$f":"Lista_zaliha[[#This Row],[KOL.]]*Lista_zaliha[[#This Row],[CENA]]","v":280},{"$f":"IFERROR(IF(Lista_zaliha[[#This Row],[KOL.]]<=Lista_zaliha[[#This Row],[KOLIČINA ZA PONOVNO PORUČIVANJE]],1,0),0)","v":1}]
[null,"TS3456","Stavka 10","T349",{"$f":"IFERROR(VLOOKUP(Lista_zaliha[[#This Row],[BROJ KORPE]],Pronalaženje_korpe[],3,FALSE),\"\")","v":"Red 1, slot 2"},"Svaka",15,8,60,{"$f":"Lista_zaliha[[#This Row],[KOL.]]*Lista_zaliha[[#This Row],[CENA]]","v":900},{"$f":"IFERROR(IF(Lista_zaliha[[#This Row],[KOL.]]<=Lista_zaliha[[#This Row],[KOLIČINA ZA PONOVNO PORUČIVANJE]],1,0),0)","v":0}]
[null,"WDG123","Stavka 11","T349",{"$f":"IFERROR(VLOOKUP(Lista_zaliha[[#This Row],[BROJ KORPE]],Pronalaženje_korpe[],3,FALSE),\"\")","v":"Red 1, slot 2"},"Svaka",25,15,8,{"$f":"Lista_zaliha[[#This Row],[KOL.]]*Lista_zaliha[[#This Row],[CENA]]","v":200},{"$f":"IFERROR(IF(Lista_zaliha[[#This Row],[KOL.]]<=Lista_zaliha[[#This Row],[KOLIČINA ZA PONOVNO PORUČIVANJE]],1,0),0)","v":0}]

{"sheet":"Lista izdvajanja za zalihe","index":1,"n_rows":9,"n_cols":9,"rows_kept":9,"cut":false,"hidden":false,"merged":[]}
[null,"LISTA IZDVAJANJA ZA ZALIHE"]
[null,null,"LISTA ZALIHA"]
[]
[null,"BROJ PORUDŽBINE","SKU","KOLIČINA ZA IZDVAJANJE","DOSTUPNA KOLIČINA","OPIS STAVKE","JEDINICA","BROJ KORPE","LOKACIJA"]
[null,"TP001-1","SP7875",3,{"$f":"IFERROR(VLOOKUP(Lista_izdvajanja_za_zalihe[SKU],Lista_zaliha[],6,FALSE),\"\")","v":20},{"$f":"IFERROR(VLOOKUP(Lista_izdvajanja_za_zalihe[SKU],Lista_zaliha[],2,FALSE),\"\")","v":"Stavka 1"},{"$f":"IFERROR(VLOOKUP(Lista_izdvajanja_za_zalihe[SKU],Lista_zaliha[],5,FALSE),\"\")","v":"Svaka"},{"$f":"IFERROR(VLOOKUP(Lista_izdvajanja_za_zalihe[SKU],Lista_zaliha[],3,FALSE),\"\")","v":"T345"},{"$f":"IFERROR(VLOOKUP(Lista_izdvajanja_za_zalihe[SKU],Lista_zaliha[],4,FALSE),\"\")","v":"Red 2, slot 1"}]
[null,"TP001-1","YE98767",1,{"$f":"IFERROR(VLOOKUP(Lista_izdvajanja_za_zalihe[SKU],Lista_zaliha[],6,FALSE),\"\")","v":40},{"$f":"IFERROR(VLOOKUP(Lista_izdvajanja_za_zalihe[SKU],Lista_zaliha[],2,FALSE),\"\")","v":"Stavka 4"},{"$f":"IFERROR(VLOOKUP(Lista_izdvajanja_za_zalihe[SKU],Lista_zaliha[],5,FALSE),\"\")","v":"Kutija (10 komada)"},{"$f":"IFERROR(VLOOKUP(Lista_izdvajanja_za_zalihe[SKU],Lista_zaliha[],3,FALSE),\"\")","v":"T9876"},{"$f":"IFERROR(VLOOKUP(Lista_izdvajanja_za_zalihe[SKU],Lista_zaliha[],4,FALSE),\"\")","v":"Red 3, slot 2"}]
[null,"TP001-1","BM87684",2,{"$f":"IFERROR(VLOOKUP(Lista_izdvajanja_za_zalihe[SKU],Lista_zaliha[],6,FALSE),\"\")","v":10},{"$f":"IFERROR(VLOOKUP(Lista_izdvajanja_za_zalihe[SKU],Lista_zaliha[],2,FALSE),\"\")","v":"Stavka 7"},{"$f":"IFERROR(VLOOKUP(Lista_izdvajanja_za_zalihe[SKU],Lista_zaliha[],5,FALSE),\"\")","v":"Svaka"},{"$f":"IFERROR(VLOOKUP(Lista_izdvajanja_za_zalihe[SKU],Lista_zaliha[],3,FALSE),\"\")","v":"T349"},{"$f":"IFERROR(VLOOKUP(Lista_izdvajanja_za_zalihe[SKU],Lista_zaliha[],4,FALSE),\"\")","v":"Red 1, slot 2"}]
[null,"TP001-1","TS3456",6,{"$f":"IFERROR(VLOOKUP(Lista_izdvajanja_za_zalihe[SKU],Lista_zaliha[],6,FALSE),\"\")","v":15},{"$f":"IFERROR(VLOOKUP(Lista_izdvajanja_za_zalihe[SKU],Lista_zaliha[],2,FALSE),\"\")","v":"Stavka 10"},{"$f":"IFERROR(VLOOKUP(Lista_izdvajanja_za_zalihe[SKU],Lista_zaliha[],5,FALSE),\"\")","v":"Svaka"},{"$f":"IFERROR(VLOOKUP(Lista_izdvajanja_za_zalihe[SKU],Lista_zaliha[],3,FALSE),\"\")","v":"T349"},{"$f":"IFERROR(VLOOKUP(Lista_izdvajanja_za_zalihe[SKU],Lista_zaliha[],4,FALSE),\"\")","v":"Red 1, slot 2"}]
[null,"TP001-1","MK676554",3,{"$f":"IFERROR(VLOOKUP(Lista_izdvajanja_za_zalihe[SKU],Lista_zaliha[],6,FALSE),\"\")","v":10},{"$f":"IFERROR(VLOOKUP(Lista_izdvajanja_za_zalihe[SKU],Lista_zaliha[],2,FALSE),\"\")","v":"Stavka 3"},{"$f":"IFERROR(VLOOKUP(Lista_izdvajanja_za_zalihe[SKU],Lista_zaliha[],5,FALSE),\"\")","v":"Svaka"},{"$f":"IFERROR(VLOOKUP(Lista_izdvajanja_za_zalihe[SKU],Lista_zaliha[],3,FALSE),\"\")","v":"T5789"},{"$f":"IFERROR(VLOOKUP(Lista_izdvajanja_za_zalihe[SKU],Lista_zaliha[],4,FALSE),\"\")","v":"Red 1, slot 1"}]

{"sheet":"Pronalaženje korpe","index":2,"n_rows":11,"n_cols":7,"rows_kept":11,"cut":false,"hidden":false,"merged":[]}
[null,"PRONALAŽENJE KORPE"]
[null,"LISTA ZALIHA"]
[]
[null,"BROJ KORPE","OPIS","LOKACIJA","ŠIRINA","VISINA","DUŽINA"]
[null,"T345","Velika korpa","Red 2, slot 1",50,10,10]
[null,"T5789","Mala korpa","Red 1, slot 1",25,5,5]
[null,"T9876","Velika korpa","Red 3, slot 2",50,10,10]
[null,"T098","Srednja korpa","Red 3, slot 1",30,7,10]
[null,"T349","Mala korpa","Red 1, slot 2",25,5,5]
[null,"T5789","Velika korpa","Red 4, slot 5",50,10,10]
[null,"T9875","Velika korpa","Red 2, slot 2",50,10,10]